bitfinex/quotes_BTCUSD_20260125
["timestamp","ask_amount","ask_price","bid_price","bid_amount"]
[1769376918437,0.09819417,86549.0,86483.0,0.01156296]
[1769376918438,1.07985266,86502.0,86483.0,0.01156296]
[1769376918664,0.01155989,86506.0,86483.0,0.01156296]
[1769376918665,1.07985266,86500.0,86483.0,0.01156296]
[1769376918850,0.19925232,86499.0,86481.0,0.01156323]
[1769376919052,0.19925232,86499.0,86470.0,1.56778439]
[1769376919053,1.27910498,86499.0,86470.0,0.43642322]
[1769376919253,1.27910498,86499.0,86456.0,0.0994483]
[1769376919254,1.27910498,86499.0,86486.0,0.01156256]
[1769376919505,1.27910498,86499.0,86484.0,0.01156283]
[1769376919712,1.27910498,86499.0,86488.0,0.01156229]
[1769376919928,1.27910498,86499.0,86485.0,0.01156269]
[1769376920142,1.27910498,86499.0,86486.0,0.01156256]
[1769376920326,0.19925232,86499.0,86482.0,0.01156309]
[1769376920567,1.07985266,86498.0,86482.0,0.01156309]
[1769376920751,1.07985266,86498.0,86484.0,0.01156283]
[1769376920962,0.00047235,86500.0,86494.0,0.01156149]
[1769376921392,1e-08,86500.0,86498.0,0.05780422]
[1769376921607,1e-08,86500.0,86497.0,0.01156109]
[1769376921608,1e-08,86500.0,86499.0,0.05780413]
[1769376921826,1e-08,86500.0,86499.0,0.25238762]
[1769376922036,1e-08,86500.0,86494.0,0.01156149]
[1769376922037,0.19925232,86537.0,86518.0,0.01155828]
[1769376922246,1.07985266,86534.0,86518.0,0.00014141]
[1769376922463,1.07985266,86534.0,86521.0,0.01155788]
[1769376922946,0.2108074,86542.0,86518.0,0.00014141]
[1769376922947,0.19925232,86542.0,86523.0,0.01155762]
[1769376923161,1.09140787,86541.0,86520.0,0.01155802]
[1769376923375,1.07985266,86539.0,86523.0,0.01155762]
[1769376923589,1.07985266,86539.0,86518.0,0.00893821]
[1769376923795,1.27910498,86537.0,86519.0,0.01155815]
[1769376924005,1.27910498,86537.0,86518.0,0.00893821]
[1769376924444,1.27910498,86537.0,86517.0,0.01155842]
[1769376924647,1.27924668,86537.0,86522.0,0.01155775]
[1769376924865,1.27924668,86537.0,86523.0,0.01155762]
[1769376925050,1.27924668,86537.0,86521.0,0.00107693]
[1769376925300,1.27924668,86537.0,86517.0,0.01155842]
[1769376925301,1.27924668,86537.0,86518.0,0.01155828]
[1769376925511,1.27924668,86537.0,86517.0,0.01263535]
[1769376925512,0.01155628,86533.0,86517.0,0.00107693]
[1769376925784,1.07985266,86532.0,86514.0,0.01155882]
[1769376925994,1.07985266,86532.0,86512.0,0.01155909]
[1769376926227,1.09140974,86527.0,86506.0,0.01155989]
[1769376926429,1.27910498,86524.0,86503.0,0.05780121]
[1769376926634,1.27910498,86524.0,86496.0,0.19458349]
[1769376926635,1.27910498,86524.0,86507.0,0.01155975]
[1769376926841,1.27910498,86524.0,86510.0,0.01155935]
[1769376927064,0.0001417,86537.0,86511.0,0.01155922]
[1769376927268,0.0001417,86537.0,86514.0,0.01155882]
[1769376927473,1.10888373,86537.0,86517.0,0.01155842]
[1769376927679,1.27910498,86535.0,86517.0,0.01155842]
[1769376927881,1.27910498,86535.0,86516.0,0.01155855]
[1769376928092,0.19925232,86531.0,86511.0,0.01155922]
[1769376928316,1.27910498,86530.0,86511.0,0.01155922]
[1769376928521,1.29066166,86530.0,86510.0,0.01155935]
[1769376928732,1.27910498,86530.0,86511.0,0.01155922]
[1769376928937,1.07985266,86529.0,86510.0,0.01155935]
[1769376929146,0.19925232,86526.0,86511.0,0.01155922]
[1769376929354,1.07985266,86525.0,86514.0,0.01155882]
[1769376929561,1.07985266,86525.0,86512.0,0.01155909]
[1769376929770,1.07985266,86525.0,86511.0,0.01155922]
[1769376930228,1.07985266,86525.0,86510.0,0.01155935]
[1769376930433,1.07985266,86525.0,86508.0,0.05779805]
[1769376930626,1.07985266,86525.0,86508.0,0.01155962]
[1769376930771,1.07985266,86525.0,86510.0,0.01155935]
[1769376930968,1.07985266,86525.0,86511.0,0.01155922]
[1769376931174,1.07985266,86525.0,86510.0,0.01155935]
[1769376931550,0.19925232,86526.0,86516.0,0.01155855]
[1769376931772,1.27910498,86534.0,86517.0,0.01155842]
[1769376931982,1.27910498,86534.0,86520.0,0.05778944]
[1769376932160,1.07985266,86534.0,86524.0,0.01155748]
[1769376932429,1.07985266,86534.0,86525.0,0.01155735]
[1769376932637,1.07985266,86534.0,86524.0,0.01155748]
[1769376933050,1.07985266,86534.0,86525.0,0.01155735]
[1769376933254,1.07985266,86534.0,86526.0,0.01155721]
[1769376933459,0.19925232,86536.0,86526.0,0.01155721]
[1769376933704,0.0001417,86537.0,86534.0,0.01155615]
[1769376933922,0.0001417,86537.0,86532.0,0.05778154]
[1769376933923,0.0001417,86537.0,86532.0,0.01155641]
[1769376934128,0.0001417,86537.0,86530.0,0.01155668]
[1769376934338,0.0001417,86537.0,86527.0,0.06934237]
[1769376934541,0.0001417,86537.0,86529.0,0.01155681]
[1769376934962,1.15252491,86536.0,86527.0,0.01155708]
[1769376935172,1.15252491,86536.0,86521.0,0.01155788]
[1769376935413,0.0001417,86537.0,86518.0,0.01155828]
[1769376935414,1.15252491,86534.0,86518.0,0.01155828]
[1769376935622,1.16408172,86529.0,86508.0,0.01155962]
[1769376935865,0.0001417,86537.0,86503.0,0.01156029]
[1769376935866,1.15252491,86521.0,86503.0,0.01156029]
[1769376936074,1.15252491,86519.0,86505.0,0.01156002]
[1769376936275,1.34716897,86519.0,86502.0,0.01156042]
[1769376936479,1.34716897,86519.0,86506.0,0.01155989]
[1769376936655,1.34716897,86519.0,86507.0,0.01155975]
[1769376937036,1.34716897,86519.0,86509.0,0.01155949]
[1769376937238,1.30634197,86519.0,86509.0,0.01155949]
[1769376937489,1.30634197,86519.0,86505.0,0.01156002]
[1769376937490,1.30634197,86519.0,86504.0,0.01156015]
[1769376937696,1.30634197,86519.0,86508.0,0.01155962]
[1769376937907,1.30634197,86519.0,86504.0,0.01156015]
[1769376938824,0.23113269,86531.0,86454.0,0.09573447]
[1769376938825,1.15252491,86514.0,86492.0,0.01156176]
[1769376939017,1.15252491,86503.0,86485.0,0.0693761]
[1769376939145,1.15252491,86503.0,86485.0,0.01156269]
[1769376939347,1.15252491,86503.0,86488.0,0.01156229]
[1769376939664,1.15252491,86503.0,86490.0,0.01156203]
[1769376939846,1.15252491,86503.0,86489.0,0.01156216]
[1769376940054,1.15252491,86503.0,86490.0,0.01156203]
[1769376940271,1.15266653,86503.0,86490.0,0.01156203]
[1769376940484,1.15266653,86503.0,86485.0,0.01156269]
[1769376940684,1.15252491,86501.0,86484.0,0.18462103]
[1769376940900,0.19464406,86498.0,86481.0,0.01156323]
[1769376941133,0.19464406,86496.0,86479.0,0.0115635]
[1769376941341,1.34716897,86495.0,86477.0,0.01156376]
[1769376941552,1.34716897,86495.0,86480.0,0.01156336]
[1769376941748,1.34716897,86495.0,86477.0,0.06938233]
[1769376941749,1.34716897,86495.0,86479.0,0.0115635]
[1769376942175,1.15252491,86502.0,86484.0,0.01156283]
[1769376942379,1.15252491,86500.0,86484.0,0.01156283]
[1769376942585,0.19464406,86501.0,86487.0,0.06937331]
[1769376942787,0.00014162,86503.0,86493.0,0.01156162]
[1769376942987,0.00014162,86503.0,86500.0,0.01156069]
[1769376943634,0.00014162,86503.0,86499.0,0.01156082]
[1769376943837,0.00014162,86503.0,86495.0,0.01156136]
[1769376944003,0.00014162,86503.0,86488.0,0.231245]
[1769376944004,0.01,86495.0,86482.0,0.01156309]
[1769376944225,1.16252491,86495.0,86485.0,0.01156269]
[1769376944809,1.16252491,86495.0,86482.0,0.01156309]
[1769376945010,1.16252491,86495.0,86480.0,0.01156336]
[1769376945210,1.16252491,86495.0,86478.0,0.01156363]
[1769376945423,1.16252491,86495.0,86480.0,0.01156336]
[1769376945604,1.16252491,86495.0,86481.0,0.01156323]
[1769376945806,1.16252491,86495.0,86480.0,0.01156336]
[1769376946062,1.16252491,86495.0,86481.0,0.01156323]
[1769376946267,1.16252491,86495.0,86478.0,0.01156363]
[1769376946268,1.15252491,86493.0,86478.0,0.01156363]
[1769376946465,1.15252491,86493.0,86480.0,0.01156336]
[1769376946667,0.19464406,86494.0,86485.0,0.01156269]
[1769376946902,0.19464406,86494.0,86482.0,0.01156309]
[1769376947139,0.19464406,86494.0,86269.0,100.0]
[1769376947140,1.15252491,86502.0,86484.0,0.01156283]
[1769376947339,0.19464406,86499.0,86487.0,0.01156243]
[1769376947541,1.34716897,86498.0,86488.0,0.01156229]
[1769376947735,1.34716897,86498.0,86487.0,0.01156243]
[1769376948225,1.34716897,86498.0,86486.0,0.01156256]
[1769376948863,1.34716897,86498.0,86485.0,0.01156269]
[1769376949076,1.15252491,86496.0,86481.0,0.01156323]
[1769376949306,1.15252491,86492.0,86479.0,0.0115635]
[1769376949522,1.34716897,86490.0,86472.0,0.01156443]
[1769376949733,1.34716897,86490.0,86475.0,0.01156403]
[1769376949940,1.34716897,86490.0,86477.0,0.01156376]
[1769376950364,1.34716897,86490.0,86478.0,0.01156363]
[1769376950566,1.34716897,86490.0,86479.0,0.0115635]
[1769376950769,1.34716897,86490.0,86476.0,0.05781888]
[1769376950886,1.34716897,86490.0,86478.0,0.01156363]
[1769376951142,1.34716897,86490.0,86479.0,0.0115635]
[1769376951669,1.34716897,86490.0,86460.0,0.43791275]
[1769376951670,0.19464406,86489.0,86470.0,0.0115647]
[1769376951873,0.19464406,86487.0,86476.0,0.0115639]
[1769376952051,1.15252491,86486.0,86476.0,0.0115639]
[1769376952355,1.34716897,86486.0,86478.0,0.01156363]
[1769376952559,1.34716897,86486.0,86479.0,0.0115635]
[1769376952984,0.19464406,86486.0,86482.0,0.01156309]
[1769376953192,1.15252491,86492.0,86481.0,0.01156323]
[1769376953405,0.00014162,86503.0,86488.0,0.01156229]
[1769376953406,0.19464406,86497.0,86488.0,0.01156229]
[1769376953614,0.19464406,86497.0,86489.0,0.01156216]
[1769376954025,0.19464406,86497.0,86492.0,0.01156176]
[1769376954233,1.15252491,86496.0,86492.0,0.01156176]
[1769376954444,1.34716897,86496.0,86491.0,0.01156189]
[1769376954659,1.34716897,86496.0,86488.0,0.01156229]
[1769376954858,1.15252491,86496.0,86491.0,0.06937127]
[1769376955062,0.19464406,86501.0,86491.0,0.01156189]
[1769376955268,1.34716897,86501.0,86492.0,0.01156176]
[1769376955691,0.00014162,86503.0,86491.0,0.01156189]
[1769376955901,0.00014162,86503.0,86495.0,0.01156136]
[1769376956118,0.00014162,86503.0,86496.0,0.01156122]
[1769376956321,0.00014162,86503.0,86491.0,0.01156189]
[1769376956322,1.15266653,86503.0,86491.0,0.01156189]
[1769376956526,1.34731059,86503.0,86493.0,0.01156162]
[1769376956750,1.15266653,86503.0,86488.0,0.01156229]
[1769376956956,0.19464406,86500.0,86489.0,0.01156216]
[1769376957166,1.34716897,86499.0,86490.0,0.01156203]
[1769376957775,1.34716897,86499.0,86489.0,0.01156216]
[1769376957939,1.34716897,86499.0,86488.0,0.01156229]
[1769376958137,1.15252491,86499.0,86463.0,0.0001]
[1769376958347,1.15252491,86487.0,86475.0,0.01156403]
[1769376958716,1.34716897,86487.0,86477.0,0.01156376]
[1769376958924,1.34716897,86487.0,86478.0,0.06938113]
[1769376959134,1.34716897,86487.0,86477.0,0.01156376]
[1769376959135,0.01156082,86499.0,86477.0,0.01156376]
[1769376959340,1.15252491,86496.0,86479.0,0.0115635]
[1769376959548,0.19464406,86493.0,86477.0,0.01156376]
[1769376959759,1.34716897,86491.0,86480.0,0.01156336]
[1769376960145,1.34716897,86491.0,86481.0,0.01156323]
[1769376960290,0.19464406,86501.0,86484.0,0.01156283]
[1769376960491,1.15252491,86497.0,86484.0,0.01156283]
[1769376960704,1.15252491,86495.0,86483.0,0.06937777]
[1769376960898,1.15252491,86495.0,86485.0,0.01156269]
[1769376961329,1.15252491,86495.0,86481.0,0.06937819]
[1769376961330,1.34716897,86495.0,86482.0,0.01156309]
[1769376961531,1.34716897,86494.0,86485.0,0.01156269]
[1769376961780,1.34716897,86494.0,86485.0,0.06937612]
[1769376961996,1.34716897,86494.0,86486.0,0.01156256]
[1769376962116,1.34716897,86494.0,86487.0,0.01156243]
[1769376962319,1.34716897,86494.0,86486.0,0.01156256]
[1769376962524,1.17093773,86494.0,86487.0,0.01156243]
[1769376962770,1.17093773,86494.0,86489.0,0.01156216]
[1769376962961,1.17093773,86494.0,86484.0,0.01156283]
[1769376963168,1.17093773,86494.0,86485.0,0.01156269]
[1769376963478,1.17093773,86494.0,86488.0,0.01156229]
[1769376963838,1.17093773,86494.0,86485.0,0.01156269]
[1769376964037,1.15252491,86494.0,86488.0,0.01156229]
[1769376964244,1.10969179,86503.0,86484.0,1.16235852]
[1769376964470,1.10969179,86503.0,86492.0,0.01156176]
[1769376964673,1.10969179,86503.0,86493.0,0.01156162]
[1769376964876,1.10969179,86503.0,86494.0,0.01156149]
[1769376965038,1.10955017,86501.0,86492.0,0.01156176]
[1769376965442,1.10955017,86501.0,86493.0,0.01156162]
[1769376965750,1.10955017,86501.0,86489.0,0.01156216]
[1769376966255,1.10955017,86501.0,86488.0,0.01156229]
[1769376966884,1.10955017,86501.0,86489.0,0.01156216]
[1769376967307,1.10955017,86501.0,86488.0,0.01156229]
[1769376967710,1.10955017,86501.0,86487.0,0.01156243]
[1769376967917,1.10955017,86501.0,86488.0,0.01156229]
[1769376968554,1.10955017,86501.0,86487.0,0.01156243]
[1769376968759,1.10955017,86501.0,86488.0,0.01156229]
[1769376969806,1.10955017,86501.0,86487.0,0.01247823]
[1769376970171,1.10955017,86501.0,86487.0,0.0009158]
[1769376970742,0.00014162,86503.0,86487.0,0.0009158]
[1769376970950,0.00014162,86503.0,86490.0,0.19258374]
[1769376971204,1.10955017,86502.0,86488.0,0.01156229]
[1769376971444,1.10955017,86502.0,86490.0,0.01156203]
[1769376971652,0.00014162,86503.0,86495.0,0.19258374]
[1769376972085,0.00014162,86503.0,86495.0,1.16235852]
[1769376972302,0.00014162,86503.0,86496.0,0.19258374]
[1769376972722,0.00014162,86503.0,86496.0,0.20414496]
[1769376973355,0.00014162,86503.0,86496.0,0.01156122]
[1769376973570,0.00014162,86503.0,86497.0,0.20414483]
[1769376973808,7.081e-05,86503.0,86501.0,0.19258374]
[1769376974434,7.081e-05,86503.0,86502.0,1.35494226]
[1769376974648,7.081e-05,86503.0,86502.0,0.19258374]
[1769376974897,7.081e-05,86503.0,86502.0,1.35494226]
[1769376975549,7.081e-05,86503.0,86502.0,1.41274439]
[1769376975822,0.10370224,86530.0,86500.0,0.01156069]
[1769376975823,0.01,86502.0,86500.0,0.18358086]
[1769376976050,0.01,86502.0,86482.0,0.0620619]
[1769376976051,1.09597083,86503.0,86487.0,0.18358086]
[1769376976306,1.09597083,86503.0,86487.0,0.18405321]
[1769376976972,1.09597083,86503.0,86488.0,0.18358086]
[1769376977138,0.17840854,86506.0,86488.0,0.18358086]
[1769376977382,0.17840854,86506.0,86490.0,0.18358086]
[1769376977383,0.17165347,86506.0,86490.0,0.18358086]
[1769376977995,1.09597083,86508.0,86493.0,0.01156162]
[1769376978197,1.09597083,86508.0,86490.0,0.19514289]
[1769376978198,0.01155909,86512.0,86495.0,0.18358086]
[1769376978478,0.11550473,86511.0,86495.0,0.18358086]
[1769376978617,0.18996749,86513.0,86495.0,0.18358086]
[1769376978840,1.21147429,86512.0,86495.0,0.18358086]
[1769376979045,0.11550346,86511.0,86495.0,0.18358086]
[1769376979285,1.09597083,86512.0,86495.0,0.18358086]
[1769376979502,0.11549902,86511.0,86495.0,0.18358086]
[1769376979700,1.27437937,86513.0,86495.0,0.18358086]
[1769376979894,1.21147038,86512.0,86495.0,0.18358086]
[1769376980142,0.11549955,86511.0,86495.0,0.19514222]
[1769376980272,0.01155802,86520.0,86500.0,0.01156069]
[1769376980480,0.12705283,86519.0,86500.0,0.18358086]
[1769376980683,1.21146551,86518.0,86500.0,0.18358086]
[1769376980889,0.11549468,86517.0,86500.0,0.19514155]
[1769376981088,0.11549468,86516.0,86500.0,0.19514155]
[1769376981290,1.09597083,86517.0,86500.0,0.19514155]
[1769376981500,1.09597083,86517.0,86502.0,0.01156042]
[1769376981981,1.09597083,86517.0,86503.0,0.18358086]
[1769376982650,1.10752925,86517.0,86503.0,0.18358086]
[1769376982868,0.17840854,86520.0,86503.0,0.16630247]
[1769376982869,0.01155895,86513.0,86503.0,0.16630247]
[1769376983145,0.90840735,86506.0,86487.0,0.01203478]
[1769376983343,1.08681589,86506.0,86487.0,0.01203478]
[1769376983579,1.09597083,86505.0,86487.0,0.18405321]
[1769376983758,1.10753085,86505.0,86487.0,0.18405321]
[1769376983928,1.09597083,86505.0,86488.0,0.01156229]
[1769376984543,1.09597083,86505.0,86487.0,0.19561564]
[1769376984544,1.09597083,86503.0,86487.0,0.18405321]
[1769376985190,1.10753112,86503.0,86487.0,0.18405321]
[1769376985406,0.01156042,86502.0,86487.0,0.18405321]
[1769376985611,1.10753112,86503.0,86487.0,0.18405321]
[1769376985999,1.09597083,86503.0,86487.0,0.18405321]
[1769376987997,0.17840854,86505.0,86489.0,1.13462428]
[1769376989078,0.17840854,86505.0,86490.0,0.01156203]
[1769376989278,0.17840854,86505.0,86489.0,1.3297673]
[1769376989819,1.09597083,86506.0,86489.0,1.14618644]
[1769376990027,1.09597083,86506.0,86490.0,0.19514289]
[1769376990653,1.09597083,86506.0,86490.0,0.18358086]
[1769376990797,1.09597083,86506.0,86490.0,0.19514289]
[1769376991007,1.09597083,86506.0,86491.0,0.01156189]
[1769376991621,1.09597083,86506.0,86490.0,0.19514289]
[1769376991832,1.09597083,86506.0,86492.0,0.01156176]
[1769376992033,1.09597083,86506.0,86491.0,0.01156189]
[1769376992878,1.09597083,86506.0,86490.0,0.19514289]
[1769376993508,0.01155922,86511.0,86492.0,0.1784072]
[1769376993715,0.12710434,86510.0,86493.0,0.1784072]
[1769376993848,1.07998092,86510.0,86493.0,0.1784072]
[1769376994495,1.07998092,86510.0,86493.0,0.18996882]
[1769376994895,1.25963559,86510.0,86494.0,0.01156149]
[1769376995100,0.09214556,86520.0,86490.0,0.05780981]
[1769376995101,1.07998092,86519.0,86503.0,0.01156029]
[1769376995303,1.07998092,86519.0,86507.0,0.01155975]
[1769376995516,1.07998092,86519.0,86505.0,0.01156002]
[1769376995920,1.07998092,86519.0,86506.0,0.01155989]
[1769376996943,0.40791657,86530.0,86508.0,0.01155962]
[1769376997151,1.09153813,86526.0,86507.0,0.01155975]
[1769376997488,0.01155762,86523.0,86506.0,0.1784072]
[1769376997706,1.07998092,86523.0,86506.0,0.1784072]
[1769376998084,1.09153854,86523.0,86506.0,0.1784072]
[1769376998301,0.01155775,86522.0,86506.0,0.1784072]
[1769376998496,1.09153854,86523.0,86506.0,0.1784072]
[1769376998701,0.01155775,86522.0,86506.0,0.1784072]
[1769376998843,1.09153854,86523.0,86506.0,0.1784072]
[1769376999045,1.07998092,86523.0,86506.0,0.1784072]
[1769376999681,1.07998092,86523.0,86506.0,0.18996709]
[1769376999880,0.17965467,86525.0,86507.0,1.12763429]
[1769377000207,1.25963559,86525.0,86507.0,1.31760124]
[1769377000509,1.25963559,86525.0,86509.0,0.01155949]
[1769377000714,1.25963559,86525.0,86508.0,0.18996682]
[1769377000872,1.25963559,86525.0,86510.0,0.01155935]
[1769377001074,1.25963559,86525.0,86509.0,0.18996669]
[1769377001493,1.25963559,86525.0,86510.0,0.01155935]
[1769377001739,0.05778338,86531.0,86509.0,0.18996669]
[1769377001740,1.25963559,86531.0,86514.0,0.01155882]
[1769377001934,1.07998092,86530.0,86512.0,0.01155909]
[1769377002135,1.07998092,86530.0,86512.0,0.18996629]
[1769377002333,1.07998092,86530.0,86513.0,0.01155895]
[1769377002769,1.07998092,86530.0,86514.0,0.01155882]
[1769377003110,0.00014188,86530.0,86514.0,0.01155882]
[1769377003300,0.00014188,86530.0,86384.0,0.0004]
[1769377003301,0.00014188,86530.0,86521.0,1.30604149]
[1769377003516,0.00014188,86530.0,86522.0,0.01155775]
[1769377003945,0.00014188,86530.0,86524.0,0.01155748]
[1769377004935,0.00014188,86530.0,86526.0,0.1784072]
[1769377005542,0.00014188,86530.0,86522.0,1.12763429]
[1769377005741,0.00014188,86530.0,86522.0,1.31759924]
[1769377005946,0.00014188,86530.0,86523.0,0.18996482]
[1769377006159,0.00014188,86530.0,86523.0,0.1784072]
[1769377006399,0.00014188,86530.0,86523.0,0.17825042]
[1769377006561,0.00014188,86530.0,86523.0,0.17809366]
[1769377008581,0.00014188,86530.0,86523.0,0.17793688]
[1769377010853,0.01155521,86541.0,86523.0,0.17793688]
[1769377010971,1.07998092,86539.0,86523.0,0.17793688]
[1769377011181,1.07998092,86539.0,86523.0,0.1894945]
[1769377012015,1.07998092,86539.0,86523.0,0.18933774]
[1769377013092,0.01155388,86551.0,86539.0,0.01]
[1769377013301,0.01155508,86542.0,86539.0,0.00014188]
[1769377013472,1.07998092,86539.0,86520.0,0.1784072]
[1769377013629,1.08012275,86539.0,86523.0,0.01155762]
[1769377013852,1.08012275,86539.0,86524.0,0.01155748]
[1769377014064,1.08012275,86539.0,86525.0,0.01155735]
[1769377014290,1.08012275,86539.0,86522.0,0.18996495]
[1769377014489,1.08012275,86539.0,86524.0,0.18996468]
[1769377014717,1.08012275,86539.0,86525.0,0.18996455]
[1769377015234,1.08012275,86539.0,86525.0,0.1784072]
[1769377015370,1.08012275,86539.0,86525.0,0.18996455]
[1769377015978,1.08012275,86539.0,86526.0,0.01155721]
[1769377016380,1.08012275,86539.0,86525.0,0.1784072]
[1769377017427,1.08012275,86539.0,86525.0,0.17825047]
[1769377018805,1.07336947,86539.0,86525.0,0.17710352]
[1769377018926,0.00014183,86539.0,86525.0,0.18996455]
[1769377019127,0.00014183,86539.0,86527.0,0.1784072]
[1769377019555,0.00014183,86539.0,86527.0,0.18996428]
[1769377020123,0.00014183,86539.0,86527.0,0.1784072]
[1769377020545,0.00014183,86539.0,86529.0,0.1784072]
[1769377020783,1.07998092,86551.0,86539.0,0.00014183]
[1769377021263,0.0693172,86559.0,86539.0,0.00014183]
[1769377021264,0.17965467,86563.0,86543.0,0.1784072]
[1769377021472,1.08638793,86556.0,86543.0,0.1784072]
[1769377021710,1.08037702,86556.0,86543.0,0.1784072]
[1769377022115,0.0003961,86556.0,86543.0,0.1784072]
[1769377023159,1.08037702,86556.0,86543.0,0.1784072]
[1769377023495,0.01155334,86555.0,86543.0,0.1784072]
[1769377023696,1.08037702,86556.0,86543.0,0.1784072]
[1769377024118,1.09193023,86556.0,86543.0,0.1784072]
[1769377024838,0.01155414,86549.0,86536.0,1.30686538]
[1769377025036,0.0003961,86556.0,86521.0,0.19078897]
[1769377025037,0.17559954,86539.0,86521.0,0.19078897]
[1769377025232,0.17559954,86539.0,86522.0,0.01155775]
[1769377025233,1.14124414,86538.0,86522.0,0.01155775]
[1769377025599,1.14124414,86538.0,86523.0,0.01155762]
[1769377025803,1.14124414,86538.0,86524.0,0.01155748]
[1769377026102,1.14124414,86538.0,86525.0,0.01155735]
[1769377027122,1.14124414,86538.0,86526.0,0.01155721]
[1769377027371,1.14124414,86538.0,86525.0,0.01155735]
[1769377027731,1.14124414,86538.0,86526.0,0.01155721]
[1769377028434,1.14124414,86538.0,86525.0,0.01155735]
[1769377029037,1.14124414,86538.0,86523.0,0.19078871]
[1769377029231,1.14124414,86538.0,86525.0,0.01155735]
[1769377029625,1.14124414,86538.0,86526.0,0.01155721]
[1769377030225,1.14124414,86538.0,86524.0,0.01155748]
[1769377030833,1.14124414,86538.0,86523.0,0.19078871]
[1769377031039,1.14124414,86538.0,86525.0,0.01155735]
[1769377031241,1.14124414,86538.0,86523.0,0.19078871]
[1769377031441,1.14124414,86538.0,86523.0,0.17923109]
[1769377031857,1.14124414,86538.0,86523.0,0.19078871]
[1769377032082,1.14124414,86538.0,86523.0,0.17923109]
[1769377032287,1.14124414,86538.0,86523.0,0.19078871]
[1769377032813,1.14124414,86538.0,86521.0,0.00014183]
[1769377033025,1.14124414,86532.0,86521.0,0.00014183]
[1769377033179,0.01155588,86536.0,86521.0,0.00014183]
[1769377033180,1.14124414,86530.0,86521.0,0.00014183]
[1769377035259,0.17941325,86538.0,86521.0,0.00014183]
[1769377035390,1.23738354,86537.0,86521.0,0.00014183]
[1769377035912,1.23738354,86537.0,86521.0,0.01169971]
[1769377036477,0.05777446,86544.0,86521.0,0.01169971]
[1769377036478,0.01155468,86545.0,86523.0,0.0577881]
[1769377036695,1.05797029,86543.0,86526.0,1.12787395]
[1769377036917,1.05797029,86543.0,86526.0,1.13943116]
[1769377037133,1.05797029,86543.0,86526.0,1.12787395]
[1769377037335,0.01155548,86539.0,86518.0,0.18903828]
[1769377037536,1.05797029,86535.0,86518.0,0.17748]
[1769377037700,1.23738354,86535.0,86518.0,0.17748]
[1769377037914,1.06952644,86534.0,86518.0,0.17748]
[1769377038262,1.05797029,86534.0,86518.0,0.17748]
[1769377039303,1.06952644,86534.0,86518.0,0.17748]
[1769377039524,1.05797029,86534.0,86518.0,0.17748]
[1769377040562,0.17941325,86535.0,86519.0,0.01155815]
[1769377040772,1.05797029,86539.0,86520.0,0.3615602]
[1769377040990,1.05797029,86546.0,86527.0,1.31023082]
[1769377041184,1.19232905,86545.0,86527.0,1.3217879]
[1769377041322,1.07692353,86545.0,86527.0,1.3217879]
[1769377041542,1.05797029,86545.0,86527.0,1.3217879]
[1769377041747,1.05819189,86545.0,86527.0,1.3217879]
[1769377041970,0.8411935,86545.0,86528.0,0.01155695]
[1769377042191,0.0002216,86545.0,86533.0,1.31023082]
[1769377042410,0.0002216,86545.0,86533.0,1.30860011]
[1769377042825,0.0002216,86545.0,86533.0,1.32015639]
[1769377043244,0.9539597,86550.0,86540.0,0.01155535]
[1769377043468,0.01182271,86559.0,86540.0,0.01155535]
[1769377043469,0.0002699,86559.0,86542.0,0.01155508]
[1769377043685,0.0002699,86559.0,86546.0,0.01155454]
[1769377043900,0.04624,86560.0,86549.0,0.01155414]
[1769377044119,1.01459621,86569.0,86552.0,1.32178456]
[1769377044333,1.01451284,86569.0,86553.0,1.32178443]
[1769377044550,0.17748,86574.0,86554.0,0.01155348]
[1769377044762,0.11535244,86573.0,86555.0,0.19391021]
[1769377044976,1.19199367,86574.0,86555.0,0.19391021]
[1769377045184,0.00014186,86573.0,86557.0,0.01155308]
[1769377045402,0.00014186,86573.0,86556.0,0.19391008]
[1769377045709,0.00014186,86573.0,86559.0,0.01155281]
[1769377046036,0.00014186,86573.0,86559.0,0.18235687]
[1769377047051,0.00014186,86573.0,86559.0,1.12787395]
[1769377047261,0.00014186,86573.0,86554.0,0.18903348]
[1769377047262,0.0004,86581.0,86576.0,0.01155054]
[1769377047402,0.0004,86589.0,86576.0,0.00970139]
[1769377047403,0.38071574,86588.0,86576.0,0.00970139]
[1769377047606,0.38071574,86588.0,86573.0,0.17762186]
[1769377047607,0.38071574,86587.0,86573.0,0.17748]
[1769377047805,0.38071574,86587.0,86573.0,0.18903094]
[1769377048210,0.38071574,86587.0,86573.0,0.17748]
[1769377049061,0.01194881,86589.0,86573.0,0.17748]
[1769377049062,0.38071574,86585.0,86573.0,0.17748]
[1769377049265,0.56012899,86584.0,86573.0,0.17748]
[1769377050284,0.0004,86589.0,86584.0,1e-08]
[1769377050659,0.17941325,86587.0,86584.0,1e-08]
[1769377050843,0.56012899,86586.0,86584.0,1e-08]
[1769377052101,0.56052899,86589.0,86584.0,1e-08]
[1769377052314,0.0004,86589.0,86584.0,1e-08]
[1769377053260,0.0004,86589.0,86587.0,1.09247077]
[1769377053486,0.0004,86590.0,86587.0,1.09198511]
[1769377053691,0.0004,86590.0,86587.0,1.10353418]
[1769377053888,0.0004,86590.0,86588.0,0.19741864]
[1769377054092,0.38149517,86603.0,86589.0,0.19741864]
[1769377054315,0.38149517,86603.0,86587.0,1.10401984]
[1769377054316,0.57093198,86603.0,86587.0,1.09247077]
[1769377054584,0.570923,86602.0,86585.0,0.01154934]
[1769377054789,0.570923,86602.0,86588.0,0.01154894]
[1769377054990,0.00047276,86603.0,86588.0,0.01154894]
[1769377054991,0.00047276,86603.0,86591.0,0.01154854]
[1769377055338,0.00047276,86603.0,86592.0,0.01154841]
[1769377055861,0.00047276,86603.0,86589.0,0.01154881]
[1769377056079,0.38243171,86603.0,86588.0,0.01154894]
[1769377056534,0.38243171,86603.0,86589.0,0.01154881]
[1769377056730,0.38243171,86603.0,86590.0,0.01154867]
[1769377056956,0.38243171,86603.0,86587.0,1.28988941]
[1769377057168,0.35000218,86600.0,86587.0,0.19741864]
[1769377057345,0.35000218,86600.0,86588.0,0.01154894]
[1769377057704,0.35000218,86600.0,86587.0,0.20896771]
[1769377058194,0.38243171,86603.0,86588.0,0.01154894]
[1769377059174,0.38243171,86603.0,86590.0,0.01154867]
[1769377059840,0.38243171,86603.0,86587.0,0.19741864]
[1769377060287,0.35000218,86600.0,86587.0,0.20896771]
[1769377060703,0.35000218,86600.0,86588.0,0.01154894]
[1769377060911,0.38243171,86603.0,86587.0,0.20896771]
[1769377061334,0.38243171,86603.0,86587.0,0.19741864]
[1769377062223,0.57139576,86603.0,86587.0,0.19741864]
[1769377062642,0.57139576,86603.0,86587.0,0.20896771]
[1769377062845,0.18896405,86599.0,86584.0,1e-08]
[1769377063048,0.38195895,86599.0,86584.0,1e-08]
[1769377063227,0.570923,86598.0,86584.0,1e-08]
[1769377064291,0.570923,86598.0,86584.0,0.01154948]
[1769377064445,0.570923,86598.0,86584.0,1e-08]
[1769377065561,0.57057667,86598.0,86584.0,1e-08]
[1769377066732,0.18861772,86598.0,86586.0,0.01154921]
[1769377066947,0.18861772,86598.0,86585.0,1.09247077]